[Event "FIDE Grand Swiss 2023"]
[Site "Villa Marina, Douglas, Isle of Man, Isle Of Man"]
[Date "2023.11.04"]
[Round "10.41"]
[White "Svane, Rasmus"]
[Black "Bachmann, Axel"]
[Result "0-1"]
[TimeControl "40/90 + 30 + 30s/move"]
[WhiteFideId "4657101"]
[BlackFideId "3700488"]
[WhiteElo "2646"]
[BlackElo "2604"]

1. Nf3 {[%clk 01:40:55]} {[%emt 00:00:04]} Nf6 {[%clk 01:40:11]} {[%emt
00:00:50]} 2. c4 {[%clk 01:41:10]} {[%emt 00:00:15]} b6 {[%clk 01:40:17]}
{[%emt 00:00:25]} 3. g3 {[%clk 01:39:31]} {[%emt 00:02:08]} Bb7 {[%clk
01:40:38]} {[%emt 00:00:09]} 4. Bg2 {[%clk 01:37:53]} {[%emt 00:02:08]} c5
{[%clk 01:38:39]} {[%emt 00:02:30]} 5. O-O {[%clk 01:37:48]} {[%emt 00:00:34]}
g6 {[%clk 01:38:14]} {[%emt 00:00:54]} 6. d4 {[%clk 01:37:53]} {[%emt
00:00:26]} cxd4 {[%clk 01:38:38]} {[%emt 00:00:06]} 7. Qxd4 {[%clk 01:38:16]}
d6 {[%clk 01:38:52]} {[%emt 00:00:24]} 8. Nc3 {[%clk 01:38:38]} {[%emt
00:00:07]} Nbd7 {[%clk 01:39:17]} {[%emt 00:00:05]} 9. Be3 {[%clk 01:37:06]}
{[%emt 00:02:02]} Rc8 {[%clk 01:39:09]} {[%emt 00:00:38]} 10. Rac1 {[%clk
01:34:45]} {[%emt 00:02:51]} Bg7 {[%clk 01:38:33]} {[%emt 00:01:06]} 11. Rfd1
{[%clk 01:34:56]} {[%emt 00:00:18]} h6 {[%clk 01:31:11]} {[%emt 00:07:53]} 12.
b3 {[%clk 01:29:50]} {[%emt 00:05:35]} O-O {[%clk 01:30:30]} {[%emt 00:01:11]}
13. Qd2 {[%clk 01:29:18]} {[%emt 00:01:03]} Ng4 {[%clk 01:28:20]} {[%emt
00:02:40]} 14. Bd4 {[%clk 01:27:15]} {[%emt 00:02:33]} Ngf6 {[%clk 01:27:40]}
{[%emt 00:01:09]} 15. Be3 {[%clk 01:12:48]} {[%emt 00:14:58]} h5 {[%clk
01:26:09]} {[%emt 00:02:01]} 16. Ne1 {[%clk 01:06:03]} {[%emt 00:07:15]} Qc7
{[%clk 01:18:47]} {[%emt 00:07:52]} 17. Bh3 {[%clk 00:56:51]} {[%emt 00:09:42]}
Qb8 {[%clk 01:14:36]} {[%emt 00:04:41]} 18. Nd3 {[%clk 00:54:10]} {[%emt
00:03:11]} Rcd8 {[%clk 01:10:57]} {[%emt 00:04:09]} 19. Bh6 {[%clk 00:50:25]}
{[%emt 00:04:15]} Rfe8 {[%clk 01:01:47]} {[%emt 00:09:40]} 20. Bxg7 {[%clk
00:50:49]} {[%emt 00:00:07]} Kxg7 {[%clk 01:02:13]} {[%emt 00:00:04]} 21. Nf4
{[%clk 00:50:46]} {[%emt 00:00:32]} h4 {[%clk 01:01:00]} {[%emt 00:01:43]} 22.
Bxd7 {[%clk 00:35:05]} {[%emt 00:16:11]} Rxd7 {[%clk 00:54:05]} {[%emt
00:07:25]} 23. Ncd5 {[%clk 00:25:48]} {[%emt 00:09:47]} hxg3 {[%clk 00:51:32]}
{[%emt 00:03:03]} 24. hxg3 {[%clk 00:25:25]} {[%emt 00:00:53]} Rh8 {[%clk
00:50:17]} {[%emt 00:01:44]} 25. f3 {[%clk 00:24:56]} {[%emt 00:00:59]} Ne8
{[%clk 00:48:19]} {[%emt 00:02:29]} 26. Kg2 {[%clk 00:20:53]} {[%emt 00:04:33]}
e5 {[%clk 00:44:56]} {[%emt 00:03:53]} 27. Rh1 {[%clk 00:14:59]} {[%emt
00:06:24]} Rxh1 {[%clk 00:43:12]} {[%emt 00:02:14]} 28. Rxh1 {[%clk 00:15:25]}
{[%emt 00:00:04]} exf4 {[%clk 00:43:25]} {[%emt 00:00:17]} 29. Qd4+ {[%clk
00:14:04]} {[%emt 00:01:51]} f6 {[%clk 00:43:39]} {[%emt 00:00:16]} 30. Nxf4
{[%clk 00:07:35]} {[%emt 00:06:59]} Re7 {[%clk 00:43:23]} {[%emt 00:00:46]} 31.
Qd3 {[%clk 00:03:20]} {[%emt 00:04:46]} f5 {[%clk 00:43:34]} {[%emt 00:00:18]}
32. g4 {[%clk 00:03:29]} {[%emt 00:00:21]} Re5 {[%clk 00:37:24]} {[%emt
00:06:39]} 33. gxf5 {[%clk 00:02:30]} {[%emt 00:01:31]} Rxf5 {[%clk 00:35:30]}
{[%emt 00:02:23]} 34. Ne6+ {[%clk 00:02:46]} {[%emt 00:00:14]} Kf7 {[%clk
00:34:28]} {[%emt 00:01:32]} 35. Qe3 {[%clk 00:02:41]} {[%emt 00:00:35]} Re5
{[%clk 00:30:36]} {[%emt 00:04:22]} 36. Ng5+ {[%clk 00:02:59]} {[%emt
00:00:12]} Kg7 {[%clk 00:29:47]} {[%emt 00:01:19]} 37. Ne4 {[%clk 00:01:56]}
{[%emt 00:01:33]} Bxe4 {[%clk 00:28:08]} {[%emt 00:02:09]} 38. Qh6+ {[%clk
00:02:19]} {[%emt 00:00:08]} Kf7 {[%clk 00:28:13]} {[%emt 00:00:25]} 39. Qh8
{[%clk 00:00:57]} {[%emt 00:01:51]} Ke7 {[%clk 00:26:56]} {[%emt 00:01:46]} 40.
fxe4 {[%clk 00:00:46]} {[%emt 00:00:42]} Qa8 {[%clk 00:26:46]} {[%emt
00:00:40]} 41. Qh7+ {[%clk 00:39:23]} {[%emt 00:11:52]} Kd8 {[%clk 01:16:59]}
{[%emt 00:00:18]} 42. Qxg6 {[%clk 00:39:45]} {[%emt 00:00:08]} Rxe4 {[%clk
01:16:32]} {[%emt 00:00:57]} 43. Kf2 {[%clk 00:32:41]} {[%emt 00:07:33]} Rxe2+
{[%clk 01:15:10]} {[%emt 00:01:53]} 44. Kxe2 {[%clk 00:32:59]} {[%emt
00:00:13]} Qxh1 {[%clk 01:15:37]} {[%emt 00:00:03]} 45. Qg5+ {[%clk 00:32:46]}
{[%emt 00:00:42]} Kc8 {[%clk 01:15:27]} {[%emt 00:00:40]} 46. Qe7 {[%clk
00:32:33]} {[%emt 00:00:43]} Qh5+ {[%clk 01:14:21]} {[%emt 00:01:35]} 47. Kd3
{[%clk 00:32:05]} {[%emt 00:00:56]} Nc7 {[%clk 01:14:07]} {[%emt 00:00:47]} 0-1

[Event "FIDE Grand Swiss 2023"]
[Site "Villa Marina, Douglas, Isle of Man, Isle Of Man"]
[Date "2023.11.04"]
[Round "10.48"]
[White "Wagner, Dennis"]
[Black "Iturrizaga Bonelli, Eduardo"]
[Result "1/2-1/2"]
[TimeControl "40/90 + 30 + 30s/move"]
[WhiteFideId "24650684"]
[BlackFideId "3901211"]
[WhiteElo "2589"]
[BlackElo "2615"]

1. d4 {[%clk 01:40:56]} {[%emt 00:00:03]} Nf6 {[%clk 01:40:54]} {[%emt
00:00:07]} 2. c4 {[%clk 01:41:21]} {[%emt 00:00:05]} c6 {[%clk 01:41:10]}
{[%emt 00:00:14]} 3. Nc3 {[%clk 01:34:53]} {[%emt 00:06:58]} d5 {[%clk
01:40:29]} {[%emt 00:01:11]} 4. e3 {[%clk 01:35:19]} {[%emt 00:00:04]} Bf5
{[%clk 01:40:54]} {[%emt 00:00:04]} 5. Nf3 {[%clk 01:34:32]} {[%emt 00:01:18]}
e6 {[%clk 01:41:18]} {[%emt 00:00:06]} 6. Nh4 {[%clk 01:34:32]} {[%emt
00:00:31]} Be4 {[%clk 01:41:42]} {[%emt 00:00:06]} 7. f3 {[%clk 01:34:48]}
{[%emt 00:00:13]} Bg6 {[%clk 01:42:05]} {[%emt 00:00:07]} 8. Qb3 {[%clk
01:34:05]} {[%emt 00:01:13]} Qc7 {[%clk 01:42:27]} {[%emt 00:00:08]} 9. Bd2
{[%clk 01:34:06]} {[%emt 00:00:29]} Be7 {[%clk 01:42:11]} {[%emt 00:00:46]} 10.
cxd5 {[%clk 01:32:46]} {[%emt 00:01:50]} cxd5 {[%clk 01:41:49]} {[%emt
00:00:52]} 11. Nxg6 {[%clk 01:32:51]} {[%emt 00:00:25]} hxg6 {[%clk 01:42:13]}
{[%emt 00:00:06]} 12. O-O-O {[%clk 01:33:14]} {[%emt 00:00:07]} Nc6 {[%clk
01:41:47]} {[%emt 00:00:56]} 13. Kb1 {[%clk 01:33:36]} {[%emt 00:00:08]} a6
{[%clk 01:31:14]} {[%emt 00:11:03]} 14. Rc1 {[%clk 01:31:31]} {[%emt 00:02:35]}
Nd7 {[%clk 01:24:20]} {[%emt 00:07:24]} 15. Bd3 {[%clk 01:26:25]} {[%emt
00:05:36]} Na5 {[%clk 01:11:14]} {[%emt 00:13:36]} 16. Nxd5 {[%clk 01:14:44]}
{[%emt 00:12:11]} Qxc1+ {[%clk 01:09:38]} 17. Bxc1 {[%clk 01:15:06]} {[%emt
00:02:13]} Nxb3 {[%clk 01:10:04]} {[%emt 00:00:05]} 18. Nc7+ {[%clk 01:15:30]}
{[%emt 00:00:06]} Kd8 {[%clk 01:10:29]} {[%emt 00:00:05]} 19. Nxa8 {[%clk
01:15:54]} {[%emt 00:00:05]} Na5 {[%clk 01:10:57]} {[%emt 00:00:03]} 20. e4
{[%clk 01:10:33]} {[%emt 00:05:51]} Nc6 {[%clk 01:09:15]} {[%emt 00:02:12]} 21.
Bf4 {[%clk 01:03:49]} {[%emt 00:07:14]} Nxd4 {[%clk 01:07:50]} {[%emt
00:01:55]} 22. Bc7+ {[%clk 01:02:59]} {[%emt 00:01:20]} Ke8 {[%clk 01:01:17]}
{[%emt 00:07:03]} 23. Nb6 {[%clk 00:52:04]} {[%emt 00:11:24]} Bd8 {[%clk
00:26:19]} {[%emt 00:35:29]} 24. Nxd7 {[%clk 00:51:07]} {[%emt 00:01:27]} Bxc7
{[%clk 00:23:48]} {[%emt 00:03:01]} 25. Nc5 {[%clk 00:51:32]} {[%emt 00:00:04]}
b6 {[%clk 00:24:17]} {[%emt 00:00:03]} 26. Nxa6 {[%clk 00:51:17]} {[%emt
00:00:45]} Bxh2 {[%clk 00:24:42]} {[%emt 00:00:04]} 27. Nc7+ {[%clk 00:39:31]}
{[%emt 00:12:16]} Kd7 {[%clk 00:22:11]} {[%emt 00:03:01]} 28. Nb5 {[%clk
00:39:38]} {[%emt 00:00:23]} Nc6 {[%clk 00:15:11]} {[%emt 00:07:30]} 29. a3
{[%clk 00:34:56]} {[%emt 00:05:12]} g5 {[%clk 00:14:08]} {[%emt 00:01:32]} 30.
b4 {[%clk 00:34:12]} {[%emt 00:01:15]} Rh4 {[%clk 00:14:04]} {[%emt 00:00:34]}
31. Rd1 {[%clk 00:27:33]} {[%emt 00:07:09]} Be5 {[%clk 00:13:51]} {[%emt
00:00:42]} 1/2-1/2

[Event "FIDE Grand Swiss 2023"]
[Site "Villa Marina, Douglas, Isle of Man, Isle Of Man"]
[Date "2023.11.04"]
[Round "10.49"]
[White "Karthikeyan, Murali"]
[Black "Lazavik, Denis"]
[Result "1/2-1/2"]
[TimeControl "40/90 + 30 + 30s/move"]
[WhiteFideId "5074452"]
[BlackFideId "13515110"]
[WhiteElo "2611"]
[BlackElo "2560"]

1. e4 {[%clk 01:40:58]} {[%emt 00:00:02]} e5 {[%clk 01:40:48]} {[%emt
00:00:11]} 2. Nf3 {[%clk 01:41:21]} {[%emt 00:00:07]} Nc6 {[%clk 01:41:06]}
{[%emt 00:00:12]} 3. Bb5 {[%clk 01:41:43]} {[%emt 00:00:09]} Nf6 {[%clk
01:41:20]} {[%emt 00:00:15]} 4. d3 {[%clk 01:41:40]} {[%emt 00:00:33]} Bc5
{[%clk 01:41:33]} {[%emt 00:00:17]} 5. O-O {[%clk 01:40:54]} {[%emt 00:01:15]}
Nd4 {[%clk 01:41:38]} {[%emt 00:00:25]} 6. Be3 {[%clk 01:40:37]} {[%emt
00:00:49]} Nxf3+ {[%clk 01:39:49]} {[%emt 00:02:19]} 7. Qxf3 {[%clk 01:41:01]}
{[%emt 00:00:06]} Bxe3 {[%clk 01:39:44]} {[%emt 00:00:34]} 8. Qxe3 {[%clk
01:41:25]} {[%emt 00:00:06]} c6 {[%clk 01:33:15]} {[%emt 00:06:59]} 9. Bc4
{[%clk 01:41:32]} {[%emt 00:00:24]} O-O {[%clk 01:32:54]} {[%emt 00:00:50]} 10.
Bb3 {[%clk 01:41:51]} {[%emt 00:00:11]} d6 {[%clk 01:29:56]} {[%emt 00:03:28]}
11. Nd2 {[%clk 01:41:50]} {[%emt 00:00:30]} a5 {[%clk 01:26:18]} {[%emt
00:04:08]} 12. a4 {[%clk 01:41:03]} {[%emt 00:01:18]} Be6 {[%clk 01:25:21]}
{[%emt 00:01:26]} 13. Bxe6 {[%clk 01:36:13]} {[%emt 00:05:21]} fxe6 {[%clk
01:25:44]} {[%emt 00:00:06]} 14. c3 {[%clk 01:32:31]} {[%emt 00:04:13]} b5
{[%clk 01:17:15]} {[%emt 00:08:59]} 15. g3 {[%clk 01:27:13]} {[%emt 00:05:48]}
Qc7 {[%clk 01:12:31]} {[%emt 00:05:13]} 16. h3 {[%clk 01:17:30]} {[%emt
00:10:14]} Rab8 {[%clk 01:09:21]} {[%emt 00:03:40]} 17. Rfb1 {[%clk 00:59:12]}
{[%emt 00:18:49]} b4 {[%clk 01:03:33]} {[%emt 00:06:17]} 18. d4 {[%clk
00:54:11]} {[%emt 00:05:32]} Nd7 {[%clk 01:03:03]} {[%emt 00:00:59]} 19. Re1
{[%clk 00:35:38]} {[%emt 00:19:03]} bxc3 {[%clk 00:58:14]} {[%emt 00:05:19]} 20.
bxc3 {[%clk 00:35:59]} {[%emt 00:00:10]} exd4 {[%clk 00:58:22]} {[%emt
00:00:21]} 21. cxd4 {[%clk 00:35:53]} {[%emt 00:00:36]} Rb4 {[%clk 00:55:11]}
{[%emt 00:03:41]} 22. Rec1 {[%clk 00:33:13]} {[%emt 00:03:11]} Nb6 {[%clk
00:52:11]} {[%emt 00:03:30]} 23. Rc2 {[%clk 00:32:37]} {[%emt 00:01:06]} Qd7
{[%clk 00:46:09]} {[%emt 00:06:31]} 24. Rac1 {[%clk 00:31:17]} {[%emt
00:01:50]} d5 {[%clk 00:45:30]} {[%emt 00:01:09]} 25. e5 {[%clk 00:23:02]}
{[%emt 00:08:46]} Rxa4 {[%clk 00:43:39]} {[%emt 00:02:20]} 26. Rxc6 {[%clk
00:14:58]} {[%emt 00:08:34]} Nc4 {[%clk 00:43:20]} {[%emt 00:00:50]} 27. Nxc4
{[%clk 00:15:21]} {[%emt 00:00:07]} Qxc6 {[%clk 00:43:41]} {[%emt 00:00:08]} 28.
Nb2 {[%clk 00:15:39]} {[%emt 00:00:12]} Rc4 {[%clk 00:38:00]} {[%emt 00:06:10]}
29. Nxc4 {[%clk 00:16:04]} {[%emt 00:00:06]} dxc4 {[%clk 00:38:27]} {[%emt
00:00:03]} 30. Qc3 {[%clk 00:16:22]} {[%emt 00:00:12]} Rc8 {[%clk 00:36:58]}
{[%emt 00:01:58]} 31. Qxa5 {[%clk 00:16:13]} {[%emt 00:00:40]} c3 {[%clk
00:37:15]} {[%emt 00:00:13]} 32. Qa2 {[%clk 00:16:23]} {[%emt 00:00:21]} c2
{[%clk 00:33:38]} {[%emt 00:04:07]} 33. Qb3 {[%clk 00:14:54]} {[%emt 00:01:59]}
Kf7 {[%clk 00:29:21]} {[%emt 00:04:46]} 34. f3 {[%clk 00:10:14]} {[%emt
00:05:09]} Qc3 {[%clk 00:27:56]} {[%emt 00:01:56]} 35. Qxc3 {[%clk 00:10:40]}
{[%emt 00:00:05]} Rxc3 {[%clk 00:28:20]} {[%emt 00:00:05]} 36. Kf2 {[%clk
00:11:07]} {[%emt 00:00:03]} Ke7 {[%clk 00:26:44]} {[%emt 00:02:06]} 37. Ke2
{[%clk 00:10:23]} {[%emt 00:01:14]} Kd7 {[%clk 00:26:39]} {[%emt 00:00:35]} 38.
h4 {[%clk 00:07:56]} {[%emt 00:02:57]} h5 {[%clk 00:24:04]} {[%emt 00:03:05]}
39. g4 {[%clk 00:05:09]} {[%emt 00:03:17]} Kc6 {[%clk 00:18:28]} {[%emt
00:06:06]} 40. Kd2 {[%clk 00:03:51]} {[%emt 00:01:47]} Rxf3 {[%clk 00:18:52]}
{[%emt 00:00:06]} 41. Rxc2+ {[%clk 00:04:11]} {[%emt 00:00:11]} Kd5 {[%clk
00:19:17]} {[%emt 00:00:05]} 42. Rc7 {[%clk 00:03:46]} {[%emt 00:00:55]} hxg4
{[%clk 00:19:29]} {[%emt 00:00:18]} 43. Rxg7 {[%clk 00:04:10]} {[%emt
00:00:05]} Kxd4 {[%clk 00:19:12]} {[%emt 00:00:48]} 44. Rxg4+ {[%clk 00:04:34]}
{[%emt 00:00:06]} 1/2-1/2

[Event "FIDE Grand Swiss 2023"]
[Site "Villa Marina, Douglas, Isle of Man, Isle Of Man"]
[Date "2023.11.04"]
[Round "10.51"]
[White "Mareco, Sandro"]
[Black "Royal, Shreyas"]
[Result "1/2-1/2"]
[TimeControl "40/90 + 30 + 30s/move"]
[WhiteFideId "112275"]
[BlackFideId "448869"]
[WhiteElo "2606"]
[BlackElo "2407"]

1. e4 {[%clk 01:40:58]} {[%emt 00:00:01]} c5 {[%clk 01:40:54]} {[%emt
00:00:07]} 2. Nf3 {[%clk 01:41:23]} {[%emt 00:00:04]} d6 {[%clk 01:41:18]}
{[%emt 00:00:06]} 3. Bb5+ {[%clk 01:41:32]} {[%emt 00:00:23]} Nd7 {[%clk
01:41:40]} {[%emt 00:00:07]} 4. a4 {[%clk 01:41:57]} {[%emt 00:00:05]} Ngf6
{[%clk 01:41:23]} {[%emt 00:00:47]} 5. Nc3 {[%clk 01:42:21]} {[%emt 00:00:06]}
a6 {[%clk 01:41:07]} {[%emt 00:00:46]} 6. Be2 {[%clk 01:42:46]} {[%emt
00:00:05]} g6 {[%clk 01:41:20]} {[%emt 00:00:17]} 7. O-O {[%clk 01:43:03]}
{[%emt 00:00:13]} Bg7 {[%clk 01:41:34]} {[%emt 00:00:15]} 8. a5 {[%clk
01:42:37]} {[%emt 00:00:56]} O-O {[%clk 01:41:37]} {[%emt 00:00:27]} 9. d3
{[%clk 01:42:19]} {[%emt 00:00:48]} b5 {[%clk 01:41:13]} {[%emt 00:00:54]} 10.
axb6 {[%clk 01:42:43]} {[%emt 00:00:07]} a5 {[%clk 01:41:25]} {[%emt 00:00:18]}
11. Bf4 {[%clk 01:36:28]} {[%emt 00:06:45]} Bb7 {[%clk 01:36:03]} {[%emt
00:05:51]} 12. Qd2 {[%clk 01:35:09]} {[%emt 00:01:49]} Bc6 {[%clk 01:32:55]}
{[%emt 00:03:38]} 13. Bh6 {[%clk 01:11:38]} {[%emt 00:24:01]} Qxb6 {[%clk
01:27:51]} {[%emt 00:05:35]} 14. Ra2 {[%clk 01:11:30]} {[%emt 00:00:39]} Rfb8
{[%clk 01:20:29]} {[%emt 00:07:51]} 15. Rfa1 {[%clk 00:56:59]} {[%emt
00:15:01]} a4 {[%clk 00:58:53]} {[%emt 00:22:06]} 16. Bxg7 {[%clk 00:54:01]}
{[%emt 00:03:28]} Kxg7 {[%clk 00:59:15]} {[%emt 00:00:08]} 17. h3 {[%clk
00:54:27]} {[%emt 00:00:04]} e5 {[%clk 00:57:50]} {[%emt 00:01:56]} 18. Bd1
{[%clk 00:41:54]} {[%emt 00:13:02]} Qc7 {[%clk 00:44:59]} {[%emt 00:13:20]} 19.
Qe3 {[%clk 00:34:18]} {[%emt 00:08:07]} Rb4 {[%clk 00:39:21]} {[%emt 00:06:08]}
20. b3 {[%clk 00:31:24]} {[%emt 00:03:25]} axb3 {[%clk 00:38:23]} {[%emt
00:01:26]} 21. Rxa8 {[%clk 00:30:15]} {[%emt 00:01:40]} d5 {[%clk 00:27:31]}
{[%emt 00:11:22]} 22. R1a7 {[%clk 00:20:47]} {[%emt 00:09:58]} Qd6 {[%clk
00:26:07]} {[%emt 00:01:54]} 23. Rc8 {[%clk 00:14:20]} {[%emt 00:06:57]} d4
{[%clk 00:24:11]} {[%emt 00:02:26]} 24. Qe1 {[%clk 00:13:19]} {[%emt 00:01:30]}
dxc3 {[%clk 00:23:08]} {[%emt 00:01:34]} 25. cxb3 {[%clk 00:13:45]} {[%emt
00:00:04]} Bb7 {[%clk 00:22:54]} {[%emt 00:00:44]} 26. Rd8 {[%clk 00:06:40]}
{[%emt 00:07:35]} Qxd3 {[%clk 00:15:02]} {[%emt 00:08:21]} 27. Nxe5 {[%clk
00:07:04]} {[%emt 00:00:07]} Qb1 {[%clk 00:15:27]} {[%emt 00:00:05]} 28. Nxd7
{[%clk 00:05:47]} {[%emt 00:01:47]} c2 {[%clk 00:09:26]} {[%emt 00:06:31]} 29.
Nxc5 {[%clk 00:05:38]} {[%emt 00:00:39]} Bd5 {[%clk 00:04:15]} {[%emt
00:05:41]} 30. Ne6+ {[%clk 00:00:47]} {[%emt 00:05:21]} Bxe6 {[%clk 00:04:39]}
{[%emt 00:00:06]} 31. Qxb4 {[%clk 00:01:13]} {[%emt 00:00:04]} cxd1=R+ {[%clk
00:04:25]} {[%emt 00:00:44]} 32. Rxd1 {[%clk 00:01:37]} {[%emt 00:00:05]} Qxd1+
{[%clk 00:04:48]} {[%emt 00:00:07]} 33. Kh2 {[%clk 00:02:02]} {[%emt 00:00:05]}
Qxb3 {[%clk 00:04:46]} {[%emt 00:00:33]} 34. Qxb3 {[%clk 00:01:21]} {[%emt
00:01:12]} 1/2-1/2